bitfinex-derivatives/quotes_SOLF0:USTF0_20250409
["timestamp","ask_amount","ask_price","bid_price","bid_amount"]
[1744210864305,27.65090128,106.16,106.12,9.4302]
[1744210864507,3.0671,106.16,106.12,9.4302]
[1744210864702,3.0671,106.16,106.08,644.7408633]
[1744210865007,24.58380128,106.14,106.07,2.923]
[1744210865305,24.58380128,106.12,106.05,362.0]
[1744210865504,24.58380128,106.12,106.09,0.06296135]
[1744210865705,27.57380128,106.12,106.09,0.06296135]
[1744210866604,9.4345,106.08,106.02,103.26282481]
[1744210866809,52.92,106.09,106.02,103.26282481]
[1744210867025,9.4356,106.07,106.02,103.26282481]
[1744210867301,55.8667,106.09,106.02,103.26282481]
[1744210867506,0.06656729,106.06,106.04,9.437]
[1744210868014,0.06656729,106.06,106.04,0.06187607]
[1744210868802,77.50380128,106.05,105.98,103.26282481]
[1744210869007,24.58380128,106.0,105.98,103.26282481]
[1744210869205,52.92,105.99,105.97,145.62823721]
[1744210869409,24.58380128,105.98,105.97,145.62823721]
[1744210869597,24.58380128,105.98,105.96,254.61477358]
[1744210869798,9.4439,105.97,105.96,9.13661799]
[1744210869995,27.40350128,105.98,105.95,323.78646698]
[1744210870202,34.02860128,105.96,105.95,319.98896698]
[1744210870412,27.40350128,105.98,105.95,319.98896698]
[1744210870608,27.40350128,105.98,105.88,33.10100128]
[1744210870914,9.4444,105.97,105.92,9.4479]
[1744210871211,0.06481383,105.96,105.93,0.06531579]
[1744210871407,52.96,105.95,105.93,0.06531579]
[1744210871602,62.406,105.95,105.93,0.06531579]
[1744210872003,52.96,105.95,105.93,0.06531579]
[1744210872606,0.06481383,105.96,105.93,0.06531579]
[1744210872826,40.09251225,106.06,105.94,40.09251225]
[1744210873015,40.09251225,106.06,105.96,40.09251225]
[1744210873215,9.4379,106.04,105.99,9.4416]
[1744210873423,52.96,106.06,105.97,40.09251225]
[1744210873626,584.93903169,105.99,105.98,9.4431]
[1744210873819,571.03293169,105.99,105.98,9.4431]
[1744210875516,571.03293169,105.99,105.97,9.50344951]
[1744210876127,571.03293169,105.99,105.98,9.4431]
[1744210876930,0.06584983,106.0,105.98,9.4431]
[1744210877733,0.06584983,106.0,105.99,9.4422]
[1744210878621,0.06584983,106.0,105.98,9.4427]
[1744210878821,0.06584983,106.0,105.97,0.05984951]
[1744210879215,9.4427,105.99,105.97,0.05984951]
[1744210879525,52.98,105.98,105.97,0.05984951]
[1744210879826,9.444,105.97,105.91,5.6684]
[1744210880018,52.98,105.98,105.91,5.6684]
[1744210880226,2.8971,106.01,105.92,40.09251225]
[1744210880427,2.8971,106.01,105.94,40.09251225]
[1744210880428,9.4411,106.01,105.94,40.09251225]
[1744210880730,52.98,106.05,105.94,402.09251225]
[1744210881029,0.06544841,105.99,105.94,455.07251225]
[1744210881236,12.92193282,106.03,105.98,40.16334397]
[1744210881434,12.92193282,106.03,106.0,40.09251225]
[1744210881738,115.33246106,106.04,106.03,9.4386]
[1744210881918,155.06319389,106.05,106.02,40.09251225]
[1744210882317,155.13081259,106.05,106.02,40.16463792]
[1744210882722,155.13081259,106.05,106.04,9.4377]
[1744210883422,155.13081259,106.05,106.03,9.4385]
[1744210883930,0.0676187,106.05,106.02,0.07212567]
[1744210884332,9.5048187,106.05,106.02,0.07212567]
[1744210884827,0.0676187,106.05,106.02,0.07212567]
[1744210885230,0.0676187,106.05,106.02,93.08463792]
[1744210886122,5.9418,106.11,106.06,9.4351]
[1744210886327,5.9418,106.11,106.02,93.01251225]
[1744210886526,5.9418,106.11,106.02,455.01251225]
[1744210886735,787.63251225,106.15,106.06,40.09251225]
[1744210887043,753.31,106.15,106.06,93.01251225]
[1744210887338,0.06032204,106.1,106.08,0.06278749]
[1744210887635,5.77,106.15,106.08,402.09251225]
[1744210888138,250.88450614,106.19,106.13,9.4295]
[1744210888438,0.06296448,106.13,106.08,402.09251225]
[1744210888738,256.65450614,106.19,106.15,0.07151398]
[1744210889036,0.06296448,106.18,106.16,0.06361332]
[1744210889236,9.4267,106.17,106.16,0.06361332]
[1744210889437,9.4267,106.17,106.11,2.8143]
[1744210889635,9.4267,106.17,106.15,0.07113685]
[1744210890138,9.427,106.16,106.15,0.07113685]
[1744210890739,40.15547673,106.17,106.11,362.0]
[1744210890940,40.09251225,106.17,106.1,52.92]
[1744210891323,9.4289,106.14,106.1,52.92]
[1744210891528,40.09251225,106.17,106.1,52.92]
[1744210891728,40.09251225,106.17,106.08,362.0]
[1744210891924,9.48823966,106.15,106.12,0.06613631]
[1744210892236,61.4988,106.19,106.12,362.06613631]
[1744210892237,8.5788,106.19,106.12,362.06613631]
[1744210892431,8.5788,106.19,106.13,40.09251225]
[1744210892631,52.88,106.23,106.17,9.4254]
[1744210892934,52.88,106.23,106.13,40.09251225]
[1744210893138,9.4231,106.21,106.13,402.09251225]
[1744210893336,52.88,106.23,106.13,402.09251225]
[1744210893535,0.06017913,106.18,106.16,9.48905184]
[1744210893840,52.88,106.23,106.13,362.0]
[1744210894041,0.05999501,106.18,106.16,0.06204226]
[1744210894239,9.4248,106.19,106.13,362.0]
[1744210894431,0.06714517,106.18,106.16,0.06465757]
[1744210894629,9.4239,106.2,106.16,9.4266]
[1744210894838,9.4239,106.2,106.16,9.49584117]
[1744210895039,0.06976491,106.18,106.16,9.49584117]
[1744210895439,0.06976491,106.18,106.16,0.06924117]
[1744210896043,0.06976491,106.18,106.17,9.4262]
[1744210896833,55.51311222,106.29,106.17,9.42]
[1744210897036,41.58477978,106.28,106.19,40.09251225]
[1744210897243,41.58477978,106.28,106.23,40.09251225]
[1744210897444,41.58477978,106.28,106.21,40.09251225]
[1744210898141,32.84997978,106.28,106.23,0.06473054]
[1744210898548,32.84997978,106.28,106.25,9.4186]
[1744210898738,32.84997978,106.28,106.23,0.06473054]
[1744210898934,32.84997978,106.28,106.22,52.86]
[1744210899245,32.84997978,106.28,106.24,0.07020131]
[1744210900040,85.70997978,106.28,106.24,0.07020131]
[1744210900346,125.80249203,106.28,106.24,0.07020131]
[1744210900649,92.95251225,106.28,106.24,0.07020131]
[1744210900851,9.4175,106.27,106.24,0.07020131]
[1744210901056,52.86,106.28,106.24,0.07020131]
[1744210901351,9.4175,106.27,106.24,0.07020131]
[1744210901651,52.84,106.29,106.24,0.07020131]
[1744210901844,40.09251225,106.28,106.24,0.07020131]
[1744210902233,61.5748,106.32,106.24,0.07020131]
[1744210902439,9.4153,106.3,106.26,9.4176]
[1744210902642,101.66731225,106.32,106.27,0.07243734]
[1744210903041,40.09251225,106.3,106.27,0.07243734]
[1744210903340,40.09251225,106.28,106.21,362.0]
[1744210903648,52.84,106.27,106.21,362.0]
[1744210903950,9.4193,106.25,106.21,362.0]
[1744210904344,0.06779367,106.24,106.22,0.0626776]
[1744210904848,0.06779367,106.24,106.23,9.4208]
[1744210906956,0.06779367,106.24,106.22,9.4839776]
[1744210907454,0.06779367,106.24,106.23,9.4208]
[1744210908550,0.06779367,106.24,106.22,0.0626776]
[1744210909757,9.48819367,106.24,106.22,0.0626776]
[1744210910053,0.06779367,106.24,106.22,0.0626776]
[1744210910250,9.4208,106.23,106.22,0.0626776]
[1744210910455,0.06779367,106.24,106.15,362.0]
[1744210910657,40.09251225,106.23,106.15,362.0]
[1744210911054,8.6311,106.26,106.17,40.09251225]
[1744210911558,0.06482944,106.23,106.2,0.06892669]
[1744210911858,9.48572944,106.23,106.21,9.4226]
[1744210912046,0.06482944,106.23,106.2,0.06892669]
[1744210912559,40.09251225,106.33,106.21,40.09251225]
[1744210912857,2.9273,106.32,106.23,40.09251225]
[1744210913060,9.4156,106.29,106.26,9.4177]
[1744210913657,9.47756081,106.29,106.26,9.47991389]
[1744210913858,0.06196081,106.29,106.27,9.4173]
[1744210914053,0.06196081,106.29,106.26,0.06221389]
[1744210914254,0.06196081,106.29,106.27,9.4169]
[1744210915357,0.06196081,106.29,106.26,9.48001389]
[1744210915559,0.06196081,106.29,106.26,0.06221389]
[1744210916860,0.06196081,106.29,106.27,9.4169]
[1744210917563,9.47746081,106.29,106.26,9.47991389]
[1744210917858,0.06196081,106.29,106.26,0.06221389]
[1744210918254,9.4169,106.28,106.26,0.06221389]
[1744210918556,0.06196081,106.29,106.26,0.06221389]
[1744210919357,9.47816081,106.29,106.26,9.48031389]
[1744210919759,0.06196081,106.29,106.26,0.06221389]
[1744210920263,9.4164,106.28,106.26,0.06221389]
[1744210920457,0.06196081,106.29,106.26,0.06221389]
[1744210921054,0.06196081,106.29,106.26,40.15472614]
[1744210921254,0.06196081,106.29,106.28,9.4164]
[1744210922458,87.6261395,106.35,106.28,9.4164]
[1744210922459,41.64732725,106.35,106.28,411.49251225]
[1744210922665,41.64732725,106.35,106.28,402.09251225]
[1744210923054,9.4124,106.33,106.31,9.4133]
[1744210923256,38.62772725,106.35,106.28,402.09251225]
[1744210923457,38.62772725,106.35,106.3,0.06262665]
[1744210924159,38.62772725,106.34,106.31,9.4133]
[1744210924368,38.62772725,106.34,106.3,0.06262665]
[1744210924561,38.62772725,106.34,106.31,9.4131]
[1744210924866,38.62772725,106.34,106.3,0.06262665]
[1744210925268,38.62772725,106.34,106.3,1.79209539]
[1744210925563,38.62772725,106.34,106.3,0.06262665]
[1744210926262,38.62772725,106.34,106.33,9.412]
[1744210928573,38.62772725,106.34,106.32,9.48455621]
[1744210929069,38.62772725,106.34,106.32,0.07225621]
[1744210929270,55.7968,106.36,106.32,0.07225621]
[1744210929464,55.7968,106.36,106.32,9.48495621]
[1744210929865,38.62772725,106.38,106.32,0.07225621]
[1744210930164,9.4101,106.36,106.32,0.07225621]
[1744210930670,9.4101,106.36,106.34,9.4107]
[1744210930873,9.4088,106.37,106.32,0.07225621]
[1744210931177,38.62772725,106.38,106.35,9.4096]
[1744210931359,48.03562725,106.38,106.32,92.49055466]
[1744210931564,48.03562725,106.38,106.34,0.05950844]
[1744210931764,48.03562725,106.38,106.35,9.4096]
[1744210931975,38.62772725,106.38,106.34,0.05950844]
[1744210932676,9.4102,106.35,106.34,0.05950844]
[1744210932874,92.49055466,106.36,106.26,52.72]
[1744210933075,2.9914,106.34,106.27,1.72959896]
[1744210933373,42.76195466,106.34,106.25,410.77435466]
[1744210933581,39.77055466,106.32,106.26,1.73004719]
[1744210933877,52.72,106.31,106.23,52.72]
[1744210934080,39.77055466,106.3,106.21,362.0]
[1744210934270,39.83691061,106.3,106.21,362.0]
[1744210934577,39.77055466,106.3,106.21,362.0]
[1744210935381,0.06749188,106.27,106.24,0.06430334]
[1744210936070,0.06749188,106.27,106.26,9.4182]
[1744210936881,9.188e-05,106.27,106.26,9.4182]
[1744210937172,14.16872927,106.29,106.28,9.4164]
[1744210937371,2.927e-05,106.29,106.28,9.4164]
[1744210937972,110.54676868,106.3,106.29,9.4155]
[1744210938170,257.56313401,106.32,106.3,39.77055466]
[1744210938372,0.0657443,106.31,106.3,401.77055466]
[1744210938569,300.66682872,106.33,106.3,450.94110932]
[1744210938873,39.73984818,106.33,106.32,39.77055466]
[1744210939066,39.73984818,106.33,106.32,111.30345466]
[1744210939266,8.8432,106.39,106.32,414.72]
[1744210939667,8.8432,106.39,106.34,0.06925359]
[1744210940273,39.77055466,106.38,106.34,0.06925359]
[1744210940473,39.77055466,106.38,106.32,362.0]
[1744210940774,9.4112,106.34,106.32,362.0]
[1744210940975,39.77055466,106.36,106.27,362.0]
[1744210941176,39.77055466,106.34,106.27,9.4168]
[1744210941375,5.6632,106.33,106.26,52.72]
[1744210941571,5.6632,106.33,106.23,92.49055466]
[1744210941772,0.06261105,106.31,106.28,0.06594356]
[1744210942983,9.4155,106.29,106.28,0.06594356]
[1744210945582,9.415,106.3,106.28,0.06594356]
[1744210945782,0.06261105,106.31,106.28,0.06594356]
[1744210945986,9.4146,106.3,106.28,0.06594356]
[1744210946284,52.74261105,106.31,106.28,0.06594356]
[1744210946482,92.51316571,106.31,106.24,9.4197]
[1744210946781,9.4177,106.27,106.23,52.72]
[1744210946983,92.45055466,106.31,106.25,9.419]
[1744210947186,9.4168,106.28,106.25,9.419]
[1744210947386,92.45055466,106.31,106.24,9.4194]
[1744210947685,0.06222287,106.29,106.26,0.06553431]
[1744210948083,39.83277753,106.29,106.21,362.0]
[1744210948385,9.4195,106.25,106.21,362.0]
[1744210948586,9.4195,106.25,106.22,9.4213]
[1744210948786,39.77055466,106.29,106.21,362.0]
[1744210948981,39.77055466,106.29,106.23,9.4205]
[1744210949280,9.48890652,106.26,106.24,0.06938044]
[1744210949781,0.07030652,106.26,106.24,0.06938044]
[1744210949989,0.07030652,106.26,106.2,9.423]
[1744210950285,6.00960652,106.26,106.17,456.08862569]
[1744210950486,5.9393,106.26,106.2,9.4226]
[1744210950799,5.9393,106.26,106.17,456.08862569]
[1744210951084,9.48472771,106.23,106.2,9.49164771]
[1744210951286,0.06322771,106.23,106.2,9.49164771]
[1744210951686,9.48452771,106.23,106.2,9.49164771]
[1744210951988,9.48452771,106.23,106.21,9.4226]
[1744210952687,9.48452771,106.23,106.2,0.06824771]
[1744210953284,9.48452771,106.23,106.21,9.4225]
[1744210953477,9.48452771,106.23,106.2,0.06824771]
[1744210953478,52.74322771,106.23,106.2,0.06824771]
[1744210954887,52.74322771,106.23,106.17,362.0]
[1744210955083,77.26901417,106.23,106.16,9.4265]
[1744210955286,77.26901417,106.23,106.14,52.68]
[1744210955489,77.20578646,106.23,106.14,52.68]
[1744210955690,9.4242,106.2,106.17,9.4253]
[1744210955989,0.06012405,106.2,106.17,0.07060357]
[1744210956392,9.4249,106.19,106.17,0.07060357]
[1744210956689,0.06012405,106.2,106.17,0.07060357]
[1744210957191,0.06012405,106.2,106.19,9.4244]
[1744210957695,0.06012405,106.2,106.17,0.07060357]
[1744210958187,0.06012405,106.2,106.19,9.4244]
[1744210958492,2.405e-05,106.2,106.18,52.7]
[1744210958682,2.405e-05,106.2,106.18,77.22578646]
[1744210958886,2.405e-05,106.2,106.19,9.4244]
[1744210959287,5.9393,106.26,106.19,9.42]
[1744210959493,5.9393,106.26,106.2,24.52578646]
[1744210959787,5.9393,106.26,106.18,9.4253]
[1744210959788,77.22578646,106.25,106.18,9.4253]
[1744210959994,24.52578646,106.23,106.13,24.52578646]
[1744210960513,24.58830368,106.19,106.09,180.4510526]
[1744210960791,8.7818,106.18,106.09,180.4510526]
[1744210960998,9.4275,106.16,106.13,9.4289]
[1744210961296,8.7818,106.18,106.09,155.92526614]
[1744210961598,24.52578646,106.17,106.09,155.92526614]
[1744210961788,0.07048305,106.15,106.12,0.06253098]
[1744210962093,77.29626951,106.15,106.09,103.22526614]
[1744210962597,9.4312,106.12,106.09,112.65816614]
[1744210962980,77.22578646,106.15,106.06,52.7]
[1744210963187,77.22578646,106.15,106.1,9.4323]
[1744210963386,0.06040953,106.12,106.1,9.4323]
[1744210963587,9.49100953,106.12,106.09,9.4328]
[1744210963784,0.06040953,106.12,106.1,0.06316921]
[1744210963985,5.7713,106.11,106.04,362.0]
[1744210964397,5.7713,106.11,106.04,401.94638908]
[1744210964785,39.94638908,106.17,106.06,39.94638908]
[1744210964983,2.8088,106.17,106.07,52.72]
[1744210965197,0.0602927,106.13,106.1,0.05966509]
[1744210965987,0.0602927,106.13,106.12,9.4306]
[1744210966799,0.0602927,106.13,106.11,9.4308]
[1744210967000,0.0602927,106.13,106.1,0.05966509]
[1744210967199,0.0602927,106.13,106.1,40.00605417]
[1744210968895,9.27e-05,106.13,106.12,9.4306]
[1744210969096,9.27e-05,106.13,106.12,62.1706]
[1744210969396,9.27e-05,106.13,106.12,102.11698908]
[1744210969604,5.5775,106.21,106.12,464.10638908]
[1744210969794,5.5775,106.21,106.14,39.94638908]
[1744210969990,9.4235,106.2,106.14,39.94638908]
[1744210970300,5.5775,106.21,106.12,454.68638908]
[1744210970503,9.4239,106.2,106.12,454.68638908]
[1744210970893,5.5775,106.21,106.15,0.07161504]
[1744210971097,0.06537125,106.17,106.15,0.07161504]
[1744210971400,0.06537125,106.17,106.16,9.427]
[1744210971699,0.06537125,106.17,106.15,0.07161504]
[1744210971894,0.06537125,106.17,106.16,9.427]
[1744210972095,9.49207125,106.17,106.15,0.07161504]
[1744210973104,0.06537125,106.17,106.15,9.49911504]
[1744210973293,0.06537125,106.17,106.15,0.07161504]
[1744210973603,9.49187125,106.17,106.15,0.07161504]
[1744210973804,0.06537125,106.17,106.15,0.07161504]
[1744210974015,0.06537125,106.17,106.12,414.74]
[1744210974203,9.49187125,106.17,106.15,9.4278]
[1744210974502,0.06537125,106.17,106.12,454.68638908]
[1744210974699,0.06537125,106.17,106.15,9.4275]
[1744210975003,0.06537125,106.17,106.15,0.06975708]
[1744210975204,9.49197125,106.17,106.15,0.06975708]
[1744210975708,0.06537125,106.17,106.15,0.06975708]
[1744210975894,9.49197125,106.17,106.15,0.06975708]
[1744210976406,0.06537125,106.17,106.15,9.49755708]
[1744210978106,0.06537125,106.17,106.16,9.427]
[1744210978312,5.5132,106.21,106.16,52.68]
[1744210978609,9.4213,106.23,106.2,9.4229]
[1744210978800,9.4213,106.23,106.16,92.62638908]
[1744210978999,9.4213,106.23,106.16,454.62638908]
[1744210979201,9.4213,106.23,106.21,9.4221]
[1744210979395,5.5931,106.24,106.16,454.62638908]
[1744210979601,0.06054358,106.23,106.16,454.62638908]
[1744210979801,5.5931,106.24,106.19,0.06140933]
[1744210980002,0.06708266,106.21,106.19,0.06140933]
[1744210980403,0.06708266,106.21,106.14,52.68]
[1744210980603,39.94638908,106.22,106.14,52.68]
[1744210980799,9.425,106.19,106.16,9.4267]
[1744210981009,39.94638908,106.22,106.16,9.4267]
[1744210981214,39.94638908,106.22,106.14,9.4283]
[1744210981406,9.4264,106.17,106.14,9.4283]
[1744210981805,9.49014014,106.17,106.14,9.50010859]
[1744210982618,9.49014014,106.17,106.15,9.4278]
[1744210983213,0.06374014,106.17,106.15,9.4278]
[1744210984112,0.06374014,106.17,106.14,9.50020859]
[1744210984308,9.4275,106.16,106.14,0.07180859]
[1744210984713,5.90034014,106.17,106.14,9.49990859]
[1744210985011,15.32694014,106.17,106.14,0.07180859]
[1744210985209,15.32694014,106.17,106.15,9.4276]
[1744210985403,15.32694014,106.17,106.14,0.07180859]
[1744210986013,15.32694014,106.17,106.14,9.50000859]
[1744210986215,0.06374014,106.17,106.14,0.07180859]
[1744210987215,9.4275,106.16,106.14,0.07180859]
[1744210987819,5.6372,106.16,106.14,0.07180859]
[1744210988021,0.06374014,106.17,106.14,0.07180859]
[1744210988520,24.55825448,106.16,106.08,155.90526614]
[1744210988901,9.43,106.13,106.08,155.90526614]
[1744210989102,24.55825448,106.16,106.08,155.90526614]
[1744210989514,9.4292,106.14,106.08,155.90526614]
[1744210989713,0.06072608,106.13,106.11,0.06194243]
[1744210989914,0.06072608,106.13,106.12,9.4306]
[1744210990413,0.06072608,106.13,106.11,0.06194243]
[1744210991415,0.06072608,106.13,106.12,9.4306]
[1744210991613,5.6372,106.19,106.12,52.68]
[1744210991820,5.6372,106.19,106.16,9.4265]
[1744210992120,5.6372,106.19,106.12,414.68]
[1744210992320,5.6372,106.19,106.15,9.4275]
[1744210992614,5.6372,106.19,106.12,362.0]
[1744210992817,0.06399542,106.18,106.1,9.432]
[1744210993017,24.55825448,106.14,106.07,362.0]
[1744210993222,24.55825448,106.12,106.06,103.22526614]
[1744210993422,24.55825448,106.1,106.06,103.22526614]
[1744210993806,2.7448,106.11,106.06,103.22526614]
[1744210994015,0.06818243,106.09,106.07,0.06571746]
[1744210994216,0.06818243,106.09,106.07,29.88719669]
[1744210994526,8.243e-05,106.09,106.08,9.4342]
[1744210996534,8.243e-05,106.09,106.08,33.99245448]
[1744210996830,15.392,106.17,106.14,9.4288]
[1744210997024,5.9654,106.17,106.11,52.68]
[1744210997220,2.9797,106.19,106.12,24.55825448]
[1744210997815,0.07111626,106.17,106.14,0.06382047]
[1744210998022,0.07111626,106.17,106.15,52.68]
[1744210998324,0.07111626,106.17,106.14,0.06382047]
[1744210998915,0.07111626,106.17,106.16,9.427]
[1744210999116,24.55825448,106.24,106.14,0.06382047]
[1744210999117,52.68,106.25,106.15,77.23825448]
[1744210999326,9.4218,106.22,106.19,9.4238]
[1744210999529,9.4218,106.22,106.15,439.23825448]
[1744210999822,9.4206,106.24,106.21,9.4219]
[1744211000033,24.55825448,106.24,106.15,439.23825448]
[1744211000220,0.06157546,106.21,106.18,0.06517072]
[1744211000829,0.06157546,106.21,106.19,9.424]
[1744211001123,7.546e-05,106.21,106.2,52.68]
[1744211001428,7.546e-05,106.21,106.2,62.1035]
[1744211002120,8.4151,106.28,106.24,9.4193]
[1744211002318,5.6131,106.28,106.21,24.55825448]
[1744211002634,5.6131,106.28,106.2,414.68]
[1744211002635,2.8844,106.31,106.26,9.4178]
[1744211002821,8.7669,106.31,106.26,9.4178]
[1744211003017,9.4159,106.29,106.23,24.55825448]
[1744211003222,8.7669,106.31,106.27,0.06398758]
[1744211003625,0.07192684,106.3,106.27,9.48088758]
[1744211003926,0.07192684,106.3,106.27,0.06398758]
[1744211004134,0.07192684,106.3,106.28,9.4163]
[1744211004432,0.07192684,106.3,106.27,52.64398758]
[1744211004623,0.01169332,106.3,106.27,439.20224206]
[1744211004816,0.01169332,106.3,106.27,414.64398758]
[1744211005218,0.01169332,106.3,106.27,439.20224206]
[1744211005826,0.01169332,106.3,106.29,9.4155]
[1744211006127,0.01169332,106.3,106.27,414.64398758]
[1744211006322,0.01169332,106.3,106.28,9.4164]
[1744211006529,0.01169332,106.3,106.27,414.64398758]
[1744211008928,0.01169332,106.3,106.27,439.20224206]
[1744211009635,0.01169332,106.3,106.29,9.4155]
[1744211010437,0.01169332,106.3,106.27,414.64398758]
[1744211010735,0.01169332,106.3,106.27,362.06398758]
[1744211010919,0.01169332,106.3,106.27,371.48128758]
[1744211011124,0.01169332,106.3,106.27,0.06398758]
[1744211011543,0.01169332,106.3,106.28,52.54]
[1744211012440,2.8829,106.37,106.29,24.55825448]
[1744211012633,5.9388,106.41,106.32,24.55825448]
[1744211012833,9.408,106.38,106.35,9.4097]
[1744211013241,33.72615448,106.41,106.33,52.54]
[1744211013536,0.06304066,106.38,106.32,362.0]
[1744211013735,0.06304066,106.38,106.36,0.06179455]
[1744211013935,9.4084,106.37,106.36,0.06179455]
[1744211014136,0.06304066,106.38,106.32,362.0]
[1744211014349,9.4115,106.34,106.31,9.4133]
[1744211014936,24.55825448,106.37,106.3,9.4142]
[1744211015137,24.55825448,106.37,106.29,52.54]
[1744211015336,0.066593,106.35,106.32,0.06286656]
[1744211015533,9.4118,106.34,106.32,0.06286656]
[1744211015844,0.066593,106.35,106.32,0.06286656]
[1744211016047,9.4111,106.34,106.32,0.06286656]
[1744211016446,0.066593,106.35,106.32,0.06286656]
[1744211017136,0.066593,106.35,106.32,9.47516656]
[1744211017333,0.066593,106.35,106.32,0.06286656]
[1744211018437,0.066593,106.35,106.33,9.4118]
[1744211019146,9.477593,106.35,106.32,9.47516656]
[1744211019342,9.477593,106.35,106.32,0.06286656]
[1744211019746,0.066593,106.35,106.33,9.4118]
[1744211019941,0.066593,106.35,106.32,0.06286656]
[1744211020852,0.066593,106.35,106.33,9.412]
[1744211021039,0.066593,106.35,106.32,0.06286656]
[1744211022150,0.066593,106.35,106.34,9.4111]
[1744211022345,9.4081,106.38,106.33,52.52]
[1744211022548,61.6879,106.41,106.33,52.52]
[1744211023047,6.4058,106.41,106.33,454.2807097]
[1744211023346,6.4058,106.41,106.38,9.4067]
[1744211023551,0.06190818,106.38,106.36,0.06230379]
[1744211023737,39.7607097,106.39,106.3,415.7637]
[1744211023934,9.4093,106.37,106.36,0.06366147]
[1744211024246,9.4093,106.37,106.34,9.4109]
[1744211024443,3.3839,106.39,106.31,39.7607097]
[1744211024646,0.05960752,106.37,106.34,0.06112043]
[1744211024848,0.05960752,106.37,106.36,9.4085]
[1744211025251,0.05960752,106.37,106.34,52.56112043]
[1744211025744,7.52e-06,106.37,106.34,414.56112043]
[1744211026052,39.7607097,106.49,106.36,39.7607097]
[1744211026239,6.8144,106.46,106.36,363.88040616]
[1744211026555,6.8144,106.46,106.36,404.90591586]
[1744211026743,9.4019,106.45,106.36,404.90591586]
[1744211026952,6.8144,106.46,106.4,9.405]
[1744211027250,0.06183617,106.42,106.39,52.5]
[1744211027841,0.06183617,106.42,106.39,52.56388602]
[1744211028741,0.06183617,106.42,106.41,9.4049]
[1744211029148,92.2607097,106.52,106.41,401.7607097]
[1744211029349,9.9116,106.51,106.41,401.7607097]
[1744211030351,0.06504063,106.47,106.45,0.0624149]
[1744211030543,9.46504063,106.47,106.45,0.0624149]
[1744211031354,0.06504063,106.47,106.45,0.0624149]
[1744211031554,0.06504063,106.47,106.42,9.4035]
[1744211031748,9.4012,106.46,106.4,52.48]
[1744211031949,39.7607097,106.5,106.4,52.48]
[1744211032254,39.7607097,106.5,106.4,414.48]
[1744211032455,39.7607097,106.48,106.4,414.48]
[1744211032657,39.7607097,106.48,106.42,9.4036]
[1744211032855,9.46397833,106.45,106.43,0.06303551]
[1744211033750,9.4022,106.44,106.43,0.06303551]
[1744211033958,52.4917097,106.44,106.37,52.38]
[1744211034157,3.4314,106.43,106.37,52.38]
[1744211034956,9.4048,106.42,106.37,52.38]
[1744211035154,0.05933379,106.41,106.39,9.47502621]
[1744211035352,0.05933379,106.41,106.39,0.06882621]
[1744211035552,9.46473379,106.41,106.39,0.06882621]
[1744211036147,9.4058,106.4,106.39,0.06882621]
[1744211036757,39.82004349,106.41,106.36,391.20184758]
[1744211037150,39.82004349,106.41,106.37,9.4081]
[1744211037452,0.05933379,106.41,106.36,391.20184758]
[1744211038059,0.05933379,106.41,106.37,0.06660955]
[1744211038461,0.05933379,106.41,106.38,52.38]
[1744211038759,0.05933379,106.41,106.39,9.4067]
[1744211038961,0.05933379,106.41,106.38,52.38]
[1744211039253,0.05933379,106.41,106.38,9.4074]
[1744211039456,9.4063,106.4,106.37,0.06660955]
[1744211039661,0.05933379,106.41,106.37,0.06660955]
[1744211039959,0.05933379,106.41,106.38,9.4071]
[1744211040153,0.05933379,106.41,106.37,0.06660955]
[1744211040358,0.05933379,106.41,106.37,9.47490955]
[1744211040658,9.406,106.4,106.37,9.47490955]
[1744211040859,0.05933379,106.41,106.38,9.407]
[1744211041059,0.05933379,106.41,106.37,0.06660955]
[1744211041453,0.05933379,106.41,106.37,9.47460955]
[1744211041652,0.05933379,106.41,106.37,0.06660955]
[1744211044369,3.379e-05,106.41,106.38,24.44366761]
[1744211044554,12.5936,106.47,106.4,24.44366761]
[1744211044753,3.1936,106.47,106.4,24.44366761]
[1744211045257,3.1936,106.47,106.39,414.38]
[1744211045465,24.44366761,106.46,106.38,9.4072]
[1744211045671,0.06555514,106.44,106.42,0.06073849]
[1744211045856,0.06555514,106.44,106.37,744.78]
[1744211046161,0.06555514,106.44,106.36,52.38]
[1744211046162,9.4071,106.39,106.36,52.38]
[1744211046367,3.0942,106.43,106.36,52.38]